[Event "Gibraltar Challengers B 2020"]
[Site "Caleta"]
[Date "2020.01.26"]
[Round "2.29"]
[White "Gonzalvez Perales, Jose Luis"]
[Black "Johnsen, Sylvia"]
[Result "1-0"]
[ECO "D02"]
[WhiteElo "1992"]
[BlackElo "1902"]
[Annotator "NA"]
[PlyCount "75"]
[EventDate "2020.01.20"]
[EventType "swiss"]
[EventCountry "GGB"]
[SourceTitle "playchess.com"]
[Source "ChessBase"]
[SourceQuality "1"]
[TimeControl "6600+10"]

1. d4 {[%emt 0:00:06]} d5 {[%emt 0:00:05]} 2. Bf4 {[%emt 0:00:07]} Nf6 {[%emt 0:02:21]} 3. e3 {[%emt 0:00:08]} Bf5 {[%emt 0:05:08]} 4. Nf3 {[%emt 0:13:49]} e6 {[%emt 0:01:19]} 5. c3 {[%emt 0:09:56]} Bd6 {[%emt 0:05:01]} 6. Ne5 {[%emt 0:06:13]} O-O {[%emt 0:00:56]} 7. Nd2 {[%emt 0:06:44]} h6 {[%emt 0:02:02]} ({Black should play} 7... Nc6 $11) 8. h4 {[%emt 0:13:08]} Nbd7 $14 {[%emt 0:23:00]} 9. Be2 {[%emt 0:08:28]} Ne4 {[%emt 0:04:59]} 10. g4 {[%emt 0:05:35]} Bh7 {[%emt 0:11:33]} 11. Nxe4 {[%emt 0:03:07]} Bxe4 {[%emt 0:05:48]} 12. f3 {[%emt 0:01:58]} Bh7 {[%emt 0:01:44]} 13. Bd3 {[%emt 0:10:53]} Nxe5 {[%emt 0:02:43]} 14. dxe5 {[%emt 0:04:03]} Be7 {[%emt 0:01:00]} 15. Bxh7+ {[%emt 0:00:45]} Kxh7 {[%emt 0:00:20]} 16. Qd3+ {[%emt 0:00:05]} Kg8 {[%emt 0:01:14]} 17. O-O-O {[%emt 0:09:32]} c5 {[%emt 0:05:48]} 18. Bg3 {[%emt 0:06:35]} c4 {[%emt 0:01:52]} 19. Qe2 {[%emt 0:01:20]} Qa5 {[%emt 0:01:14]} 20. a3 {[%emt 0:03:16]} b5 {[%emt 0:03:44]} 21. f4 {[%emt 0:01:18]} g6 {[%emt 0:05:10]} 22. f5 {[%emt 0:00:34]} Rfd8 {[%emt 0:01:46]} 23. fxg6 {[%emt 0:00:34]} fxg6 {[%emt 0:00:17]} 24. Qc2 {[%emt 0:00:25]} Kh7 {[%emt 0:04:28]} 25. h5 {[%emt 0:00:04]} Rg8 {[%emt 0:00:35]} 26. hxg6+ {[%emt 0:00:26]} Kg7 {[%emt 0:01:12]} 27. Rxh6 {[%emt 0:01:41]} Rh8 {[%emt 0:01:10]} 28. Rh7+ {[%emt 0:00:02]} Rxh7 {[%emt 0:00:49]} 29. gxh7 {[%emt 0:00:02]} Rh8 {[%emt 0:00:58]} 30. Rh1 {[%emt 0:00:02]} Qd8 {[%emt 0:01:14]} 31. Bf4 {[%emt 0:01:11]} Bg5 {[%emt 0:04:17]} 32. Rh5 {[%emt 0:00:02]} Bxf4 {[%emt 0:02:42]} 33. exf4 {[%emt 0:00:02]} Qe7 {[%emt 0:01:35]} 34. f5 {[%emt 0:00:15]} Qf7 {[%emt 0:02:29]} 35. f6+ {[%emt 0:00:29]} Kf8 {[%emt 0:00:13]} 36. Qf2 {[%emt 0:00:36]} Rxh7 {[%emt 0:01:17]} 37. Qc5+ {[%emt 0:00:13]} Kg8 {[%emt 0:00:27]} 38. Qc8+ {[%emt 0:00:07] Qc7} 1-0

[Event "Gibraltar Challengers B 2020"]
[Site "Caleta"]
[Date "2020.01.26"]
[Round "2.30"]
[White "Alami, Halim"]
[Black "O`neil, Jim"]
[Result "1-0"]
[ECO "B21"]
[WhiteElo "1987"]
[BlackElo "1870"]
[Annotator "NA"]
[PlyCount "63"]
[EventDate "2020.01.20"]
[EventType "swiss"]
[EventCountry "GGB"]
[SourceTitle "playchess.com"]
[Source "ChessBase"]
[SourceQuality "1"]
[TimeControl "6600+10"]

1. e4 {[%emt 0:01:43]} c5 {[%emt 0:00:00]} 2. f4 {[%emt 0:00:20]} a6 {[%emt 0:01:39]} 3. Nf3 {[%emt 0:01:03]} Nc6 {[%emt 0:00:28]} 4. Be2 {[%emt 0:00:38]} Nf6 {[%emt 0:00:54]} 5. d3 {[%emt 0:00:21]} e6 {[%emt 0:00:35]} 6. O-O {[%emt 0:00:20] B21: Sicilian: 2 f4 and Morra Gambit} d5 $146 {[%emt 0:01:58]} ({Predecessor:} 6... d6 7. Nc3 Qc7 8. Qe1 b5 9. Bd2 b4 10. Nd1 g6 11. Ne3 Bg7 {½-½ (33) Ebeling,M (2250)-Ivanov,M (2438) Finland 2011}) 7. e5 {[%emt 0:00:13]} Nd7 {[%emt 0:04:24]} 8. Be3 {[%emt 0:01:30]} b6 {[%emt 0:04:41]} 9. c3 {[%emt 0:00:22]} Bb7 {[%emt 0:01:42]} 10. d4 {[%emt 0:00:56]} Ne7 {[%emt 0:03:35]} 11. Bf2 {[%emt 0:00:26]} h5 {[%emt 0:03:40]} 12. Nh4 {[%emt 0:02:43]} g6 {[%emt 0:03:06]} 13. Nd2 {[%emt 0:00:42]} Nf5 {[%emt 0:04:05]} 14. Ndf3 {[%emt 0:00:58]} Be7 {[%emt 0:04:10]} 15. Nxf5 {[%emt 0:01:29]} gxf5 {[%emt 0:02:05]} 16. h4 {[%emt 0:01:12]} Nf8 {[%emt 0:11:21]} 17. Ng5 {[%emt 0:00:37]} Bxg5 {[%emt 0:07:47]} 18. fxg5 {[%emt 0:00:08]} Qe7 {[%emt 0:01:16]} 19. Bxh5 {[%emt 0:05:11]} c4 {[%emt 0:07:30]} 20. g4 {[%emt 0:02:15]} fxg4 {[%emt 0:06:08]} 21. Qxg4 {[%emt 0:00:22]} Kd7 {[%emt 0:10:08]} 22. Be3 {[%emt 0:01:24]} Ng6 {[%emt 0:01:42]} 23. Rf6 $18 {[%emt 0:02:43]} Rag8 {[%emt 0:00:35]} 24. Raf1 {[%emt 0:01:08]} Rh7 {[%emt 0:00:10]} 25. Bxg6 {[%emt 0:03:32]} fxg6 {[%emt 0:04:59]} 26. Bf2 {[%emt 0:02:01]} Bc6 {[%emt 0:01:00]} 27. Qd1 {[%emt 0:01:33]} Kd8 {[%emt 0:01:52]} 28. Bg3 {[%emt 0:00:25]} Be8 {[%emt 0:02:43]} 29. b3 {[%emt 0:01:30]} b5 {[%emt 0:02:44]} 30. bxc4 {[%emt 0:00:31]} dxc4 {[%emt 0:03:08]} 31. Qf3 {[%emt 0:00:58]} Qa7 {[%emt 0:02:14]} 32. Rxe6 {[%emt 0:01:07]} 1-0

[Event "Gibraltar Challengers B 2020"]
[Site "Caleta"]
[Date "2020.01.26"]
[Round "2.31"]
[White "Kaplan, Amiram"]
[Black "Fernandez Lopategi, Jon Andoni"]
[Result "1/2-1/2"]
[ECO "B01"]
[WhiteElo "1880"]
[BlackElo "1987"]
[Annotator "NA"]
[PlyCount "83"]
[EventDate "2020.01.20"]
[EventType "swiss"]
[EventCountry "GGB"]
[SourceTitle "playchess.com"]
[Source "ChessBase"]
[SourceQuality "1"]
[TimeControl "6600+10"]

1. e4 {[%emt 0:00:00]} d5 {[%emt 0:00:06]} 2. exd5 {[%emt 0:00:00]} Qxd5 {[%emt 0:00:16]} 3. Nc3 {[%emt 0:00:03]} Qa5 {[%emt 0:00:26]} 4. d4 {[%emt 0:00:11]} c6 {[%emt 0:00:26]} 5. h3 {[%emt 0:01:47]} Bf5 {[%emt 0:00:29]} 6. Nf3 {[%emt 0:01:07]} Nf6 {[%emt 0:01:13]} 7. Bd3 {[%emt 0:03:02]} Bxd3 {[%emt 0:03:59]} 8. Qxd3 {[%emt 0:00:10]} Nbd7 {[%emt 0:00:56] B01: Scandinavian Defence} (8... Qa6 9. Qxa6 Nxa6 10. Bg5 e6 11. O-O-O Bb4 12. Nb1 O-O 13. c3 Bd6 14. Rhe1 h6 15. Be3 b5 16. Nbd2 Rfc8 17. Nb3 Nc7 18. Ne5 Ncd5 19. Nd3 Nd7 20. Kc2 {½-½ (20) Zajic,M (2479)-Pezelj,N (2452) Banja Vrujci 2017}) 9. Bd2 {[%emt 0:00:57]} e6 {[%emt 0:02:32]} 10. O-O {[%emt 0:00:43]} Qc7 {[%emt 0:03:18]} 11. Rfe1 {[%emt 0:00:42]} Bd6 {[%emt 0:04:36]} 12. a4 {[%emt 0:04:32]} O-O $146 {[%emt 0:02:42]} ({Predecessor:} 12... Nb6 13. Ne4 Nxe4 14. Qxe4 Nd5 15. c4 {1-0 (77) Hamid,R (1976)-Zisha,Z (1623) Dhaka 2015}) 13. Rad1 {[%emt 0:02:38]} a6 {[%emt 0:05:43]} 14. Ng5 {[%emt 0:15:45]} b5 {[%emt 0:09:07]} 15. axb5 {[%emt 0:02:46]} axb5 {[%emt 0:03:58]} 16. Nge4 {[%emt 0:03:22]} Bh2+ {[%emt 0:05:43]} 17. Kh1 {[%emt 0:01:28]} Bf4 {[%emt 0:00:17]} 18. Qf3 {[%emt 0:00:24]} Bxd2 {[%emt 0:02:27]} 19. Rxd2 {[%emt 0:00:08]} Nd5 {[%emt 0:02:41]} 20. g3 {[%emt 0:10:00]} b4 $15 {[%emt 0:06:44]} 21. Nd1 {[%emt 0:05:29]} Ra2 {[%emt 0:08:57]} 22. Kg2 {[%emt 0:02:56]} N7b6 {[%emt 0:03:44]} 23. b3 {[%emt 0:01:59]} Nc8 {[%emt 0:05:58]} 24. c4 {[%emt 0:08:44]} Rxd2 {[%emt 0:01:56]} 25. Nxd2 {[%emt 0:00:05]} Nf6 {[%emt 0:00:25]} 26. Ne4 {[%emt 0:11:31]} Nxe4 {[%emt 0:02:15]} 27. Qxe4 {[%emt 0:01:21]} Rd8 {[%emt 0:08:04]} 28. Ne3 {[%emt 0:02:55]} Ne7 {[%emt 0:00:47]} 29. Ra1 {[%emt 0:04:27]} h6 {[%emt 0:01:58]} 30. Nc2 {[%emt 0:02:14]} c5 {[%emt 0:06:11]} 31. dxc5 {[%emt 0:03:51]} Qxc5 {[%emt 0:00:08]} 32. Ra8 {[%emt 0:00:59]} Rxa8 {[%emt 0:00:22]} 33. Qxa8+ {[%emt 0:00:12]} Kh7 {[%emt 0:00:07]} 34. Qb7 {[%emt 0:00:51]} Nf5 {[%emt 0:09:13]} 35. Qxb4 {[%emt 0:07:22]} Qc6+ {[%emt 0:00:13]} 36. Kh2 {[%emt 0:02:00]} Qf3 {[%emt 0:00:24]} 37. Qd2 {[%emt 0:04:09]} Qxb3 {[%emt 0:00:17]} 38. Qe2 {[%emt 0:00:27]} g6 {[%emt 0:01:24]} 39. Kg2 {[%emt 0:01:46]} Kg7 {[%emt 0:02:02]} 40. Ne1 {[%emt 0:02:28]} Kf6 {[%emt 0:02:17]} 41. Nf3 {[%emt 0:00:43]} Qc3 {[%emt 0:00:09]} 42. Qe4 {[%emt 0:00:31] Ke5} 1/2-1/2

[Event "Gibraltar Challengers B 2020"]
[Site "Caleta"]
[Date "2020.01.26"]
[Round "2.32"]
[White "Paul, Nathanael"]
[Black "Auvinen, Esa"]
[Result "1-0"]
[ECO "D02"]
[WhiteElo "1987"]
[BlackElo "1850"]
[Annotator "NA"]
[PlyCount "61"]
[EventDate "2020.01.20"]
[EventType "swiss"]
[EventCountry "GGB"]
[SourceTitle "playchess.com"]
[Source "ChessBase"]
[SourceQuality "1"]
[TimeControl "6600+10"]

1. d4 {[%emt 0:00:00]} Nf6 {[%emt 0:00:00]} 2. Bf4 {[%emt 0:00:00]} e6 {[%emt 0:00:37]} 3. e3 {[%emt 0:00:04]} d5 {[%emt 0:00:17]} 4. Nd2 {[%emt 0:00:24]} Be7 {[%emt 0:00:33]} 5. Bd3 {[%emt 0:00:17]} O-O {[%emt 0:00:08]} 6. c3 {[%emt 0:00:10]} Nbd7 {[%emt 0:01:12]} 7. Ngf3 {[%emt 0:00:09]} c5 {[%emt 0:00:24]} 8. Ne5 {[%emt 0:00:16]} Re8 {[%emt 0:06:47] D02: 1 d4 d5 2 Nf3 sidelines, including 2...Nf6 3 g3 and 2...Nf6 3 Bf4} 9. h4 {[%emt 0:05:23]} Nf8 {[%emt 0:02:42]} 10. Ndf3 $146 {[%emt 0:14:22]} ({Predecessor:} 10. Qf3 Bd6 11. h5 Bxe5 12. dxe5 N6d7 13. Qg3 f6 14. Nf3 Qe7 15. exf6 Qxf6 16. Ne5 Qe7 17. Nxd7 Nxd7 18. h6 g6 19. Bxg6 hxg6 20. Qxg6+ Kh8 21. Bd6 Rg8 22. Qxg8+ Kxg8 23. Bxe7 {1-0 (23) Buckels,V (2318)-Schoppen,C (2440) Hoogeveen 2017}) 10... Ne4 {[%emt 0:03:50]} 11. Bxe4 {[%emt 0:00:46]} (11. Ng5 $16 f6 12. Ngf7 fxe5 13. Nxd8 exf4 14. Qf3 (14. exf4 Rxd8 15. Qe2 cxd4 $11) (14. f3 Ng3 $17)) 11... dxe4 {[%emt 0:00:09]} 12. Ng5 $1 {[%emt 0:00:04]} f6 {[%emt 0:03:58]} 13. Ngf7 {[%emt 0:00:10]} fxe5 {[%emt 0:01:22]} 14. Nxd8 {[%emt 0:01:16]} exf4 {[%emt 0:00:09]} 15. Qc2 {[%emt 0:02:29]} fxe3 {[%emt 0:02:14]} 16. fxe3 {[%emt 0:00:16]} Rxd8 {[%emt 0:00:41]} 17. Qxe4 {[%emt 0:00:31]} Rb8 {[%emt 0:03:24]} 18. O-O-O {[%emt 0:00:38]} cxd4 {[%emt 0:01:05]} 19. exd4 {[%emt 0:00:39]} Bf6 {[%emt 0:03:16]} 20. Rdf1 {[%emt 0:00:39]} Bd7 {[%emt 0:00:50]} 21. Qg4 {[%emt 0:09:58]} Kh8 $2 {[%emt 0:03:01] [#]} (21... Be7 $14) 22. Rxf6 $1 {[%emt 0:00:25]} gxf6 {[%emt 0:01:05]} 23. Rf1 {[%emt 0:00:03]} f5 {[%emt 0:17:28]} 24. Qg5 $18 {[%emt 0:00:16]} Bc6 {[%emt 0:01:57]} 25. Qf6+ {[%emt 0:02:31]} Kg8 {[%emt 0:01:10]} 26. g4 {[%emt 0:00:07]} fxg4 {[%emt 0:09:12]} 27. Qg5+ {[%emt 0:00:34]} Ng6 {[%emt 0:09:50]} 28. h5 {[%emt 0:00:06]} Bf3 {[%emt 0:06:08]} 29. hxg6 {[%emt 0:00:23]} hxg6 {[%emt 0:00:02]} 30. Qxg6+ {[%emt 0:00:13]} Kf8 {[%emt 0:00:34]} 31. Qxg4 {[%emt 0:00:08] Kg8} 1-0

[Event "Gibraltar Challengers B 2020"]
[Site "Caleta"]
[Date "2020.01.26"]
[Round "2.33"]
[White "Niharika, Ch"]
[Black "Herzwurm, Robert"]
[Result "0-1"]
[ECO "C19"]
[WhiteElo "1865"]
[BlackElo "1979"]
[Annotator "NA"]
[PlyCount "90"]
[EventDate "2020.01.20"]
[EventType "swiss"]
[EventCountry "GGB"]
[SourceTitle "playchess.com"]
[Source "ChessBase"]
[SourceQuality "1"]
[TimeControl "6600+10"]

1. e4 {[%emt 14:57:51]} e6 {[%emt 0:00:18]} 2. d4 {[%emt 0:00:03]} d5 {[%emt 0:00:10]} 3. Nc3 {[%emt 0:00:41]} Bb4 {[%emt 0:00:10]} 4. e5 {[%emt 0:00:04]} c5 {[%emt 0:00:09]} 5. a3 {[%emt 0:00:03]} Bxc3+ {[%emt 0:00:08]} 6. bxc3 {[%emt 0:00:05]} Ne7 {[%emt 0:00:23]} 7. Nf3 {[%emt 0:00:09]} b6 {[%emt 0:00:33]} 8. a4 {[%emt 0:00:07]} Qc7 {[%emt 0:05:09]} 9. Bd3 {[%emt 0:00:21]} h6 {[%emt 0:01:50]} 10. O-O {[%emt 0:00:09]} Ba6 {[%emt 0:06:24]} 11. Bxa6 {[%emt 0:00:18]} Nxa6 {[%emt 0:00:15]} 12. Qe2 {[%emt 0:03:49]} Nb8 {[%emt 0:04:24]} 13. Qb5+ {[%emt 0:07:07]} Nd7 {[%emt 0:01:53]} 14. a5 {[%emt 0:05:03]} O-O {[%emt 0:03:01]} 15. Bf4 {[%emt 0:05:49]} c4 {[%emt 0:09:34]} 16. Rfb1 {[%emt 0:03:24]} Rfb8 {[%emt 0:03:22]} 17. a6 {[%emt 0:01:14]} Ng6 {[%emt 0:09:02]} 18. Bc1 {[%emt 0:00:29]} f6 $17 {[%emt 0:00:43]} 19. Ba3 {[%emt 0:04:10]} fxe5 {[%emt 0:02:15]} 20. dxe5 {[%emt 0:00:13]} Ndxe5 {[%emt 0:10:11]} 21. Nd4 {[%emt 0:04:40]} Ng4 {[%emt 0:02:30]} 22. g3 {[%emt 0:00:01]} Qf7 {[%emt 0:01:04]} 23. f3 {[%emt 0:01:57]} Nf6 {[%emt 0:01:19]} 24. Re1 {[%emt 0:10:12]} Re8 {[%emt 0:00:50]} 25. Qb1 {[%emt 0:02:44]} Nd7 {[%emt 0:10:11]} 26. Qd1 {[%emt 0:01:14]} Nc5 {[%emt 0:00:56]} 27. Bb4 {[%emt 0:02:04]} Qd7 {[%emt 0:01:17]} 28. Re3 {[%emt 0:02:56]} Rad8 {[%emt 0:03:19]} 29. Qf1 {[%emt 0:03:44]} e5 {[%emt 0:02:29]} 30. Ne2 {[%emt 0:00:32]} Qb5 {[%emt 0:00:43]} 31. f4 {[%emt 0:04:51]} d4 {[%emt 0:04:12]} 32. cxd4 {[%emt 0:00:51]} exd4 {[%emt 0:04:06]} 33. Rxe8+ {[%emt 0:00:11]} Qxe8 {[%emt 0:04:04]} 34. Re1 {[%emt 0:03:54]} Qb5 {[%emt 0:01:24]} 35. Rb1 {[%emt 0:02:45]} Qc6 {[%emt 0:00:28]} 36. c3 {[%emt 0:01:06]} dxc3 {[%emt 0:01:59]} 37. Bxc3 {[%emt 0:02:05]} Nd3 {[%emt 0:00:54]} 38. h4 {[%emt 0:02:58]} Qc5+ {[%emt 0:01:12]} 39. Kg2 {[%emt 0:00:33]} Qe3 {[%emt 0:02:14]} 40. h5 {[%emt 0:07:09]} Ne7 {[%emt 0:01:11]} 41. f5 {[%emt 0:02:26]} Nxf5 {[%emt 0:02:17]} 42. Rb5 {[%emt 0:02:43]} Nd6 {[%emt 0:02:42]} 43. Rd5 {[%emt 0:01:19]} Rf8 {[%emt 0:00:21]} 44. Qxf8+ {[%emt 0:02:42]} Kxf8 {[%emt 0:00:08]} 45. Nd4 {[%emt 0:00:38]} Qe4+ {[%emt 0:00:20]} 0-1

[Event "Gibraltar Challengers B 2020"]
[Site "Caleta"]
[Date "2020.01.26"]
[Round "2.34"]
[White "Wang, Cong"]
[Black "Erdogan, Hassan"]
[Result "1-0"]
[ECO "B06"]
[WhiteElo "1975"]
[BlackElo "1830"]
[Annotator "NA"]
[PlyCount "93"]
[EventDate "2020.01.20"]
[EventType "swiss"]
[EventCountry "GGB"]
[SourceTitle "playchess.com"]
[Source "ChessBase"]
[SourceQuality "1"]
[TimeControl "6600+10"]

1. e4 {[%emt 0:00:00]} d6 {[%emt 0:00:00]} 2. d4 {[%emt 0:00:17]} g6 {[%emt 0:00:01]} 3. Nf3 {[%emt 0:00:10]} Bg7 {[%emt 0:00:11]} 4. Bd3 {[%emt 0:00:35]} h6 {[%emt 0:02:13]} 5. O-O {[%emt 0:00:36]} e6 {[%emt 0:05:43]} 6. c3 {[%emt 0:06:07]} Nf6 {[%emt 0:01:22]} 7. e5 {[%emt 0:03:48]} dxe5 {[%emt 0:00:52]} 8. Nxe5 {[%emt 0:00:03]} O-O {[%emt 0:07:17]} 9. Nd2 {[%emt 0:04:25]} Nfd7 {[%emt 0:05:48]} 10. f4 {[%emt 0:07:48]} Nxe5 {[%emt 0:01:27]} 11. fxe5 {[%emt 0:00:03]} Bxe5 {[%emt 0:34:28]} 12. dxe5 {[%emt 0:02:31]} Qxd3 {[%emt 0:00:01]} 13. Nf3 {[%emt 0:00:11]} Qxd1 {[%emt 0:01:33]} 14. Rxd1 {[%emt 0:00:01]} Kg7 {[%emt 0:01:57]} 15. Be3 {[%emt 0:00:43]} b6 {[%emt 0:01:43]} 16. Nd4 {[%emt 0:01:24]} a6 {[%emt 0:00:57]} 17. Rd2 {[%emt 0:02:15]} Bb7 {[%emt 0:10:29]} 18. Rad1 $17 {[%emt 0:02:25]} Nc6 {[%emt 0:02:15]} 19. Nf3 {[%emt 0:03:43]} Rfd8 {[%emt 0:00:38]} 20. Rd7 {[%emt 0:00:20]} Rxd7 {[%emt 0:03:25]} 21. Rxd7 {[%emt 0:00:03]} Rc8 {[%emt 0:00:26]} 22. Bxb6 {[%emt 0:02:48]} cxb6 {[%emt 0:01:17]} 23. Rxb7 {[%emt 0:00:02]} b5 {[%emt 0:00:26]} 24. Rb6 {[%emt 0:01:17]} g5 {[%emt 0:04:00]} 25. h3 {[%emt 0:01:32]} Nb8 {[%emt 0:08:15]} 26. Kf2 {[%emt 0:02:27]} Nd7 {[%emt 0:01:21]} 27. Rxa6 {[%emt 0:03:19]} b4 {[%emt 0:02:17]} 28. cxb4 {[%emt 0:03:13]} Rc2+ {[%emt 0:00:02]} 29. Kg3 {[%emt 0:03:49]} Rxb2 {[%emt 0:00:05]} 30. Rd6 {[%emt 0:00:57]} Nf8 {[%emt 0:00:17]} 31. Rb6 {[%emt 0:00:10]} Rxa2 {[%emt 0:01:27]} 32. h4 {[%emt 0:09:47]} gxh4+ {[%emt 0:01:50]} 33. Nxh4 {[%emt 0:00:10]} Ng6 {[%emt 0:00:28]} 34. Nxg6 {[%emt 0:05:02]} Kxg6 {[%emt 0:00:01]} 35. Rb7 {[%emt 0:01:37]} Kf5 {[%emt 0:00:16]} 36. Rxf7+ {[%emt 0:00:07]} Kxe5 {[%emt 0:00:02]} 37. Rf2 {[%emt 0:05:57]} Ra8 {[%emt 0:01:26]} 38. Rb2 {[%emt 0:03:13]} Rg8+ {[%emt 0:01:50]} 39. Kf3 {[%emt 0:00:32]} Kd4 {[%emt 0:00:49]} 40. b5 {[%emt 0:00:31]} Rf8+ {[%emt 0:00:35]} 41. Kg4 {[%emt 0:02:09]} e5 {[%emt 0:00:36]} 42. b6 {[%emt 0:01:22]} e4 {[%emt 0:00:01]} 43. b7 {[%emt 0:04:53]} Rb8 {[%emt 0:00:01]} 44. Rb3 {[%emt 0:13:08]} e3 {[%emt 0:02:04]} 45. Kf3 {[%emt 0:00:50]} Rf8+ {[%emt 0:00:14]} 46. Ke2 {[%emt 0:00:11]} Rf2+ {[%emt 0:00:07]} 47. Ke1 {[%emt 0:00:09]} 1-0

[Event "Gibraltar Challengers B 2020"]
[Site "Caleta"]
[Date "2020.01.26"]
[Round "2.35"]
[White "Manukonda, Arun"]
[Black "Olufemi, George"]
[Result "1-0"]
[ECO "A04"]
[WhiteElo "1959"]
[BlackElo "1803"]
[Annotator "NA"]
[PlyCount "104"]
[EventDate "2020.01.20"]
[EventType "swiss"]
[EventCountry "GGB"]
[SourceTitle "playchess.com"]
[Source "ChessBase"]
[SourceQuality "1"]
[TimeControl "6600+10"]

1. Nf3 {[%emt 0:03:35]} g6 {[%emt 0:01:29]} 2. g3 {[%emt 0:00:11]} Bg7 {[%emt 0:00:04]} 3. Bg2 {[%emt 0:00:01]} c5 {[%emt 0:00:22]} 4. d3 {[%emt 0:00:02]} Nc6 {[%emt 0:00:13]} 5. e4 {[%emt 0:00:05]} d6 {[%emt 0:04:06]} 6. Nbd2 {[%emt 0:00:17]} Nh6 {[%emt 0:01:24]} 7. c3 {[%emt 0:00:25]} O-O {[%emt 0:00:53]} 8. O-O {[%emt 0:00:15]} Rb8 {[%emt 0:00:28] A04: Unusual lines after 1 Nf3 and King's Indian Attack} 9. a4 {[%emt 0:00:04]} b6 $146 {[%emt 0:00:56]} ({Predecessor:} 9... Ng4 10. h3 Nge5 11. Ne1 f5 12. f4 Nf7 13. exf5 gxf5 {1-0 (45) De Greif,B (2320)-Castro Gonzales,G Bogota 1976}) 10. h3 {[%emt 0:00:25]} e6 {[%emt 0:06:07]} 11. Ne1 {[%emt 0:06:30]} Qc7 {[%emt 0:03:44]} 12. Nc4 {[%emt 0:07:13]} f6 {[%emt 0:01:41]} 13. f4 {[%emt 0:00:29]} a6 {[%emt 0:02:40]} 14. g4 {[%emt 0:03:30]} Nf7 {[%emt 0:01:06]} 15. h4 {[%emt 0:00:49]} Ne7 {[%emt 0:10:40]} 16. Ne3 {[%emt 0:08:09]} Rd8 {[%emt 0:06:17]} 17. Qb3 {[%emt 0:15:39]} b5 {[%emt 0:07:06]} 18. axb5 {[%emt 0:00:42]} axb5 {[%emt 0:00:06]} 19. Bd2 {[%emt 0:00:35]} Qd7 {[%emt 0:03:29]} 20. f5 $11 {[%emt 0:05:42]} Ne5 {[%emt 0:07:23]} 21. g5 {[%emt 0:02:28]} c4 {[%emt 0:04:20]} 22. dxc4 {[%emt 0:02:02]} exf5 {[%emt 0:04:10]} 23. cxb5+ {[%emt 0:02:05]} Qe6 {[%emt 0:01:05]} 24. Nd5 {[%emt 0:07:34]} Kh8 {[%emt 0:04:24]} 25. c4 {[%emt 0:00:00]} Ng4 {[%emt 0:09:43]} 26. gxf6 {[%emt 0:10:02]} Nxf6 {[%emt 0:01:28]} 27. Nxf6 {[%emt 0:00:34]} Bxf6 {[%emt 0:02:47]} 28. Bc3 {[%emt 0:00:16]} Bb7 {[%emt 0:08:42]} 29. Nd3 {[%emt 0:02:17]} Rf8 {[%emt 0:07:38]} 30. Nf4 {[%emt 0:00:56]} Qf7 {[%emt 0:01:36]} 31. Ra7 {[%emt 0:06:52]} Nc8 {[%emt 0:01:43]} 32. Nd5 {[%emt 0:13:41]} Be5 {[%emt 0:01:07]} 33. Bxe5+ {[%emt 0:00:46]} dxe5 {[%emt 0:00:22]} 34. Ra3 {[%emt 0:00:17]} Bxd5 {[%emt 0:01:39]} 35. exd5 {[%emt 0:00:27]} Qe7 {[%emt 0:01:08]} 36. Qe3 {[%emt 0:00:52]} Rf7 {[%emt 0:01:11]} 37. Re1 {[%emt 0:00:56]} Nd6 {[%emt 0:01:08]} 38. b3 {[%emt 0:01:13]} Re8 {[%emt 0:00:44]} 39. Ra6 {[%emt 0:00:44]} f4 {[%emt 0:00:45]} 40. Qh3 {[%emt 0:01:20]} Qf6 {[%emt 0:00:31]} 41. Rf1 {[%emt 0:00:39]} e4 {[%emt 0:00:04]} 42. c5 {[%emt 0:00:08]} Qd4+ {[%emt 0:00:04]} 43. Kh1 {[%emt 0:00:44]} Qxc5 {[%emt 0:00:09]} 44. Rc6 {[%emt 0:00:10]} Qxd5 {[%emt 0:00:08]} 45. Qc3+ {[%emt 0:00:01]} Kg8 {[%emt 0:00:07]} 46. Rc5 {[%emt 0:00:24]} Qd3 {[%emt 0:00:29]} 47. Qxd3 exd3 {[%emt 0:00:05]} 48. Bd5 {[%emt 0:00:13]} Kg7 {[%emt 0:00:09]} 49. Bxf7 {[%emt 0:00:05]} Nxf7 {[%emt 0:00:04]} 50. Rd5 {[%emt 0:00:25]} Ne5 {[%emt 0:00:10]} 51. Rxf4 {[%emt 0:00:12]} Re7 {[%emt 0:00:24]} 52. b6 {[%emt 0:00:27]} Nf7 {[%emt 0:00:12]} 1-0

[Event "Gibraltar Challengers B 2020"]
[Site "Caleta"]
[Date "2020.01.26"]
[Round "2.36"]
[White "Garcia-Blazquez Perez, Manuel"]
[Black "Perez Ruiz, Santiago"]
[Result "0-1"]
[ECO "C45"]
[WhiteElo "1825"]
[BlackElo "1953"]
[Annotator "NA"]
[PlyCount "72"]
[EventDate "2020.01.20"]
[EventType "swiss"]
[EventCountry "GGB"]
[SourceTitle "playchess.com"]
[Source "ChessBase"]
[SourceQuality "1"]
[TimeControl "6600+10"]

1. e4 {[%emt 0:00:00]} e5 {[%emt 0:00:06]} 2. Nf3 {[%emt 0:00:00]} Nc6 {[%emt 0:00:08]} 3. d4 {[%emt 0:00:03]} exd4 {[%emt 0:00:13]} 4. Nxd4 {[%emt 0:00:05]} Bc5 {[%emt 0:00:21]} 5. Be3 {[%emt 0:00:06]} Qf6 {[%emt 0:02:23]} 6. Nb5 {[%emt 0:00:06]} Bxe3 {[%emt 0:01:29]} 7. fxe3 {[%emt 0:00:08]} Qh4+ {[%emt 0:07:31]} 8. g3 {[%emt 0:00:05]} Qxe4 {[%emt 0:01:53]} 9. Nxc7+ {[%emt 0:00:06]} Kd8 {[%emt 0:00:28]} 10. Nxa8 {[%emt 0:00:04]} Qxh1 {[%emt 0:00:28]} 11. Qd6 {[%emt 0:00:12]} Nge7 {[%emt 0:01:06] [#]} (11... Nf6 $11 {keeps the balance.} 12. Nc3 Qf3 13. Qc7+ Ke7) 12. Nc3 {[%emt 0:02:40]} (12. Qc7+ $1 $16 Ke8 13. Nc3) 12... Qf3 {[%emt 0:02:22]} 13. Qc7+ {[%emt 0:03:21]} Ke8 {[%emt 0:00:11]} 14. Rd1 {[%emt 0:08:54]} (14. Kd2 $11 {keeps the balance.}) 14... Qxe3+ {[%emt 0:06:27]} 15. Be2 {[%emt 0:00:06] [#]} f6 {[%emt 0:13:36]} ({Black should try} 15... Nd4 $1 $17 {[%cal Rd4f3]} 16. Kf1 d5) 16. Nb5 {[%emt 0:18:49]} (16. Qd6 $11 {remains equal.}) 16... Kf7 $15 {[%emt 0:03:25]} 17. Nd6+ {[%emt 0:00:05]} Kg6 {[%emt 0:05:37]} 18. c3 {[%emt 0:25:22]} Ne5 {[%emt 0:12:17]} 19. Kf1 {[%emt 0:00:06]} Nf3 {[%emt 0:04:39]} 20. Bd3+ {[%emt 0:01:24]} f5 {[%emt 0:01:48]} 21. Kg2 {[%emt 0:03:48]} Ne1+ {[%emt 0:01:13]} 22. Rxe1 {[%emt 0:02:17]} Qxe1 {[%emt 0:00:23]} 23. Nc4 {[%emt 0:06:37]} Nc6 {[%emt 0:04:54]} 24. Qf4 {[%emt 0:02:08]} d5 {[%emt 0:01:04]} 25. Nd6 {[%emt 0:00:24]} Rf8 {[%emt 0:04:42]} 26. Nxc8 {[%emt 0:02:20]} Qe5 {[%emt 0:01:04]} 27. Ne7+ {[%emt 0:06:23]} Qxe7 {[%emt 0:01:56]} 28. g4 {[%emt 0:00:10]} Qg5 {[%emt 0:08:47]} 29. Qd6+ {[%emt 0:09:04]} Rf6 {[%emt 0:02:41]} 30. Bxf5+ {[%emt 0:00:05]} Kh6 {[%emt 0:00:24]} 31. Qg3 {[%emt 0:01:26]} g6 {[%emt 0:02:44]} 32. h4 {[%emt 0:01:31]} Qd2+ {[%emt 0:00:20]} 33. Kh3 {[%emt 0:00:05]} Kg7 {[%emt 0:00:48]} 34. Nc7 {[%emt 0:08:58]} gxf5 {[%emt 0:05:22]} 35. Ne8+ {[%emt 0:01:06]} Kf7 {[%emt 0:00:31]} 36. Nxf6 {[%emt 0:00:08]} f4 {[%emt 0:00:36]} 0-1